bitfinex/quotes_ETHUSD_20250214
["timestamp","ask_amount","ask_price","bid_price","bid_amount"]
[1739514691660,0.471683,2702.9,2702.6,3.70013]
[1739514691961,5.09006683,2702.9,2702.7,0.0568828]
[1739514692588,5.09006683,2702.9,2702.5,3.70018]
[1739514692819,5.09006683,2702.9,2702.8,0.05682328]
[1739514693005,6.07075151,2702.9,2702.5,3.70018]
[1739514693190,5.09006683,2702.9,2702.8,0.05682328]
[1739514693499,5.09006683,2702.9,2702.5,3.70018]
[1739514693701,5.09006683,2702.9,2702.8,0.05682328]
[1739514693903,5.09006683,2702.9,2702.5,3.70018]
[1739514694064,5.09006683,2702.9,2702.8,0.05682328]
[1739514694269,6.07075151,2702.9,2702.6,3.70006]
[1739514694469,5.09006683,2702.9,2702.6,7.40012]
[1739514694665,5.09006683,2702.9,2702.7,0.0568828]
[1739514695695,5.09006683,2702.9,2702.4,3.70032]
[1739514696264,5.09006683,2702.9,2702.5,0.05700185]
[1739514696486,5.09006683,2702.9,2702.6,3.70012]
[1739514696866,5.09006683,2702.9,2702.7,0.0568828]
[1739514698505,5.09006683,2702.9,2702.5,3.70023]
[1739514698708,0.7784,2702.8,2701.9,0.8263]
[1739514698895,0.7634,2702.6,2701.9,0.8263]
[1739514699101,3.70036,2702.5,2702.0,0.05729954]
[1739514699477,4.46358,2702.6,2702.0,3.75819954]
[1739514700074,0.7634,2702.6,2702.1,3.70079]
[1739514700273,4.46354,2702.6,2702.1,3.70079]
[1739514700514,4.46354,2702.6,2702.2,0.05718045]
[1739514700905,5.281384,2702.6,2702.2,0.05718045]
[1739514703718,10.37145083,2702.6,2702.2,0.05718045]
[1739514703912,10.56265083,2702.6,2702.2,0.05718045]
[1739514704947,0.015,2702.5,2702.2,0.05718045]
[1739514705282,0.015,2702.5,2702.0,3.70087]
[1739514705283,0.015,2702.5,2702.3,0.05729909]
[1739514705483,1.07276508,2702.4,2702.3,0.05729909]
[1739514705697,1.07276508,2702.4,2702.1,3.70077]
[1739514705891,0.015,2702.4,2702.1,3.70077]
[1739514706097,0.015,2702.4,2702.2,0.05735863]
[1739514708288,0.7573,2702.3,2702.2,0.05735863]
[1739514708696,0.7573,2702.3,2702.0,3.70095]
[1739514708899,0.7573,2702.3,2702.1,3.75819818]
[1739514709643,5.84736683,2702.3,2702.1,3.75819818]
[1739514709997,5.84736683,2702.3,2702.2,3.70068]
[1739514710539,5.84736683,2702.3,2702.2,0.05735863]
[1739514711544,5.09006683,2702.3,2702.2,3.75803863]
[1739514715649,5.09006683,2702.5,2702.3,3.70048]
[1739514715939,5.09006683,2702.5,2702.4,3.70041]
[1739514716119,5.09006683,2702.5,2702.4,3.75780474]
[1739514717425,5.09006683,2702.5,2702.4,0.05739474]
[1739514718134,5.09006683,2702.5,2702.4,3.75780474]
[1739514720371,5.09006683,2702.5,2702.4,0.05739474]
[1739514721536,0.9617,2702.6,2702.4,3.75780474]
[1739514722073,0.1912,2702.6,2702.4,3.75780474]
[1739514722674,0.1912,2702.6,2702.4,0.05739474]
[1739514722832,0.80114668,2702.6,2702.4,0.05739474]
[1739514723031,0.80114668,2702.6,2702.4,3.70039]
[1739514723555,0.1912,2702.6,2702.4,3.70039]
[1739514723768,0.1912,2702.6,2702.5,0.05733521]
[1739514724711,0.1912,2702.6,2702.5,3.75760521]
[1739514728155,0.1912,2702.6,2702.5,4.54030521]
[1739514732519,0.1912,2702.6,2702.5,10.75271401]
[1739514732677,0.1912,2702.6,2702.5,12.23422574]
[1739514734703,0.19076706,2703.2,2703.1,4.52665]
[1739514735206,0.19076706,2703.2,2703.1,4.58322581]
[1739514737302,0.19076706,2703.2,2703.1,4.6202145]
[1739514737519,0.19076706,2703.2,2703.1,7.58322581]
[1739514737801,0.19076706,2703.2,2703.1,8.71150739]
[1739514740802,0.19076706,2703.2,2703.1,11.88691886]
[1739514741722,0.19076706,2703.2,2703.1,8.71150739]
[1739514747497,0.19076706,2703.2,2703.1,11.88691886]
[1739514750594,0.19076706,2703.2,2703.1,8.71150739]
[1739514752200,0.19076706,2703.2,2703.1,3.75602581]
[1739514753742,0.19076706,2703.2,2703.1,3.79301698]
[1739514753953,0.19076706,2703.2,2703.1,4.56782581]
[1739514757830,0.19076706,2703.2,2703.1,3.75602581]
[1739514763262,0.19076706,2703.2,2703.1,6.75602581]
[1739514763568,0.19076706,2703.2,2703.1,7.87941739]
[1739514766975,0.19076706,2703.2,2703.1,11.85972886]
[1739514767755,0.19076706,2703.2,2703.1,10.22295191]
[1739514777704,0.19076706,2703.2,2703.1,6.75602581]
[1739514779675,0.19076706,2703.2,2703.1,0.05657581]
[1739514779877,0.98276706,2703.2,2703.1,0.05657581]
[1739514780075,0.98276706,2703.2,2703.0,3.69957]
[1739514780282,0.98276706,2703.2,2703.1,3.75500209]
[1739514780986,0.98276706,2703.2,2703.1,0.05555209]
[1739514781361,0.9519139,2703.2,2702.8,7.39957]
[1739514781578,0.7556,2703.1,2702.9,0.0556711]
[1739514782066,0.7556,2703.1,2702.9,3.7553611]
[1739514782293,0.7556,2703.1,2703.0,3.69959]
[1739514782610,0.7556,2703.1,2703.0,3.75544285]
[1739514786185,0.7556,2703.1,2703.0,0.05585285]
[1739514786793,0.7556,2703.1,2702.7,3.69988]
[1739514787012,0.7556,2703.1,2702.8,3.75583187]
[1739514787184,0.7556,2703.1,2702.8,0.05597187]
[1739514787380,0.7556,2703.1,2702.7,3.69988]
[1739514787586,0.7608,2703.0,2702.8,0.05598336]
[1739514787812,0.7973,2702.8,2702.5,3.70021]
[1739514788013,0.7973,2702.8,2702.6,0.0561024]
[1739514789010,0.7973,2702.8,2702.3,10.40092]
[1739514789185,0.7973,2702.8,2702.4,0.05653175]
[1739514789584,0.7973,2702.8,2702.4,3.75684175]
[1739514790222,1.34249447,2702.8,2702.5,3.70024]
[1739514790380,0.7973,2702.8,2702.6,3.70013]
[1739514790585,0.8123,2702.8,2702.7,0.05700819]
[1739514791235,0.7973,2702.8,2702.7,0.05700819]
[1739514792802,5.88736683,2702.8,2702.5,3.70018]
[1739514793091,5.88736683,2702.8,2702.6,0.05706771]
[1739514793291,6.57160698,2702.8,2702.6,0.05706771]
[1739514794214,6.57160698,2702.8,2702.6,3.75719771]
[1739514794421,5.88736683,2702.8,2702.6,3.75719771]
[1739514794831,5.88736683,2702.8,2702.6,0.05706771]
[1739514796295,5.09006683,2702.8,2702.6,0.05706771]
[1739514796500,0.8018,2702.7,2702.3,6.70049]
[1739514796720,0.8018,2702.7,2702.3,3.70046]
[1739514796922,0.8018,2702.5,2702.3,3.70046]
[1739514797124,0.8018,2702.5,2702.1,3.70076]
[1739514797433,0.8018,2702.5,2702.2,3.70063]
[1739514797795,0.8018,2702.5,2702.1,3.70076]
[1739514798111,0.8018,2702.5,2702.2,3.70065]
[1739514798613,0.8018,2702.5,2702.3,3.70051]
[1739514801058,0.8018,2702.5,2702.3,3.70046]
[1739514801366,0.7513,2702.7,2702.5,3.70019]
[1739514801498,1.36193668,2702.7,2702.5,3.70019]
[1739514801694,0.7513,2702.7,2702.5,3.70019]
[1739514801933,5.84136683,2702.7,2702.5,7.40038]
[1739514802136,5.84136683,2702.7,2702.5,3.70019]
[1739514802716,5.84136683,2702.7,2702.3,3.70047]
[1739514802915,5.84136683,2702.7,2702.4,3.70031]
[1739514803244,6.45200351,2702.7,2702.4,3.70031]
[1739514805125,6.45200351,2702.7,2702.3,3.70047]
[1739514805333,6.45200351,2702.7,2702.4,3.70039]
[1739514807344,5.84136683,2702.7,2702.5,3.70025]
[1739514807517,5.84136683,2702.7,2702.6,3.70014]
[1739514807941,5.84136683,2702.7,2702.5,3.70025]
[1739514808442,5.84136683,2702.7,2702.4,3.70039]
[1739514810444,5.84136683,2702.7,2702.3,3.70046]
[1739514810617,5.84136683,2702.7,2702.3,7.40093]
[1739514811349,5.84136683,2702.7,2702.3,3.70046]
[1739514811544,6.79547651,2702.7,2702.4,0.05729598]
[1739514811751,6.79547651,2702.7,2702.4,3.75768598]
[1739514812948,6.79547651,2702.7,2702.4,0.05729598]
[1739514813152,6.79547651,2702.7,2701.9,3.7573]
[1739514813348,0.8062,2702.5,2702.0,3.70096]
[1739514813509,0.8062,2702.5,2702.2,3.70068]
[1739514814241,0.8062,2702.5,2702.2,7.40127]
[1739514814670,0.8062,2702.5,2702.2,3.70059]
[1739514815027,0.8062,2702.5,2702.2,7.4012]
[1739514815228,0.8062,2702.5,2702.3,3.70053]
[1739514816033,0.8062,2702.5,2702.4,3.70041]
[1739514816368,5.09006683,2702.7,2702.4,3.70041]
[1739514816555,5.92306683,2702.7,2702.3,3.70054]
[1739514817073,5.92306683,2702.7,2702.3,7.40096]
[1739514817368,6.66937871,2702.7,2702.3,3.70042]
[1739514817546,6.66937871,2702.7,2702.4,3.70039]
[1739514818271,6.66937871,2702.7,2702.3,3.70042]
[1739514818574,6.66937871,2702.7,2702.3,7.40089]
[1739514818736,6.66937871,2702.7,2702.4,3.70038]
[1739514819268,6.66937871,2702.7,2702.5,3.70025]
[1739514822563,6.66937871,2702.7,2702.5,7.40045]
[1739514822764,6.66937871,2702.7,2702.5,3.7002]
[1739514823364,5.92306683,2702.7,2702.5,3.7002]
[1739514824176,3.70016,2702.6,2702.1,3.70073]
[1739514824704,0.8087,2702.5,2702.1,3.70073]
[1739514825662,0.8087,2702.5,2702.2,3.70066]
[1739514825863,6.64264871,2702.5,2702.1,3.70073]
[1739514826559,6.64264871,2702.5,2702.2,0.05738631]
[1739514826983,6.64264871,2702.5,2702.2,3.75798631]
[1739514827144,6.64264871,2702.5,2702.2,0.05738631]
[1739514829694,6.64264871,2702.5,2702.0,3.70095]
[1739514829984,6.64264871,2702.5,2702.1,3.70081]
[1739514830149,6.64264871,2702.5,2702.1,3.7583191]
[1739514831284,6.64264871,2702.5,2702.1,7.4590191]
[1739514831484,6.64264871,2702.5,2702.3,3.70053]
[1739514831485,5.89876683,2702.5,2702.3,3.70053]
[1739514831982,5.89876683,2702.5,2702.4,0.05733048]
[1739514832348,5.89876683,2702.5,2702.1,7.4014]
[1739514832585,5.89876683,2702.5,2702.2,0.05744956]
[1739514832953,5.89876683,2702.5,2702.2,3.75808956]
[1739514833976,5.09006683,2702.5,2702.2,3.75808956]
[1739514834181,5.09006683,2702.5,2702.4,3.70041]
[1739514834551,5.09006683,2702.5,2702.4,3.75787269]
[1739514835203,5.09006683,2702.5,2702.4,0.05746269]
[1739514835493,5.09006683,2702.5,2702.3,3.70044]
[1739514835697,5.09006683,2702.5,2702.4,0.05746269]
[1739514836052,5.09006683,2702.5,2702.4,3.75787269]
[1739514836704,5.09006683,2702.5,2702.4,4.58397696]
[1739514837005,0.7612,2702.9,2702.4,4.58397696]
[1739514837192,5.09006683,2703.0,2702.8,3.69979]
[1739514837396,0.7612,2702.9,2702.5,0.05740316]
[1739514837718,0.7612,2702.9,2702.4,3.70029]
[1739514837912,2.30125195,2702.9,2702.6,0.05734364]
[1739514838068,0.73913188,2702.8,2702.5,0.05740316]
[1739514838405,0.73913188,2702.8,2702.6,0.05734364]
[1739514838709,0.73913188,2702.8,2702.3,3.70052]
[1739514838909,0.73913188,2702.8,2702.7,0.05728412]
[1739514839207,0.7758,2702.6,2702.2,3.70057]
[1739514839407,2.31585195,2702.6,2702.2,3.70057]
[1739514840110,6.01600195,2702.6,2702.0,3.70087]
[1739514840310,2.31585195,2702.6,2702.1,3.70069]
[1739514840667,0.015,2702.5,2702.1,3.70069]
[1739514840989,0.6031042,2702.4,2702.1,3.70069]
[1739514841521,0.6031042,2702.4,2702.0,3.70087]
[1739514841726,0.015,2702.5,2702.2,0.0574783]
[1739514841922,0.015,2702.5,2702.1,0.05753784]
[1739514842113,0.015,2702.5,2702.3,0.05741876]
[1739514842282,0.015,2702.5,2702.2,0.0574783]
[1739514842486,0.015,2702.5,2702.4,0.05735922]
[1739514842687,0.53150094,2702.5,2702.3,0.05741876]
[1739514842925,0.53150094,2702.5,2702.4,0.05735922]
[1739514843226,0.53150094,2702.5,2702.1,3.7008]
[1739514843528,0.53150094,2702.5,2702.4,0.05735922]
[1739514843691,0.015,2702.5,2702.0,3.70087]
[1739514843892,0.015,2702.5,2702.4,0.05735922]
[1739514844113,0.015,2702.5,2702.0,3.70086]
[1739514844306,0.015,2702.5,2702.4,0.05735922]
[1739514844504,0.015,2702.5,2702.0,3.70086]
[1739514844705,0.015,2702.5,2702.4,0.05741097]
[1739514845016,0.53149994,2702.5,2702.4,0.05741097]
[1739514845215,0.53149994,2702.5,2702.0,3.70086]
[1739514845388,0.53149994,2702.5,2702.4,0.05741097]
[1739514845589,0.015,2702.5,2702.1,3.70077]
[1739514845801,0.015,2702.5,2702.4,0.05741097]
[1739514846092,0.015,2702.5,2702.2,3.70065]
[1739514846288,0.7758,2702.6,2702.4,0.05741097]
[1739514846526,1.0408,2702.6,2702.4,3.7004]
[1739514846723,1.0408,2702.6,2702.5,0.05754115]
[1739514847428,1.0408,2702.6,2702.3,3.70049]
[1739514847650,1.0408,2702.6,2702.5,0.05754115]
[1739514847864,1.0408,2702.6,2702.4,3.70033]
[1739514848147,0.7758,2702.6,2702.5,0.05754115]
[1739514849131,0.8221,2702.9,2702.6,3.70012]
[1739514849287,0.8071,2702.9,2702.7,3.7]
[1739514849630,0.8071,2702.9,2702.7,0.0574221]
[1739514850637,0.265,2703.0,2702.8,3.69986]
[1739514850943,0.265,2703.0,2702.8,3.75722258]
[1739514852328,0.19076706,2703.2,2702.9,3.69965]
[1739514852834,0.19076706,2703.2,2703.0,0.05724356]
[1739514854791,0.19076706,2703.2,2702.8,3.69986]
[1739514854991,0.19076706,2703.2,2703.1,0.05718406]
[1739514855242,0.19076706,2703.2,2702.8,3.69986]
[1739514855413,0.19076706,2703.2,2703.1,0.05718406]
[1739514855620,0.19076706,2703.2,2702.8,3.69977]
[1739514855927,0.19076706,2703.2,2703.1,0.05718406]
[1739514856132,0.19076706,2703.2,2702.8,3.69977]
[1739514856331,0.19076706,2703.2,2703.1,0.05718406]
[1739514856532,0.19076706,2703.2,2702.8,3.69977]
[1739514856726,0.19076706,2703.2,2703.1,0.05718406]
[1739514857027,0.19076706,2703.2,2703.1,0.05693688]
[1739514857232,0.19076706,2703.2,2702.8,3.69977]
[1739514857432,0.19076706,2703.2,2703.1,0.05693688]
[1739514857597,0.19076706,2703.2,2702.8,3.69977]
[1739514857798,0.19076706,2703.2,2703.1,0.05693688]
[1739514858024,0.19076706,2703.2,2702.8,3.69977]
[1739514858211,0.19076706,2703.2,2703.1,0.05693688]
[1739514858414,0.19076706,2703.2,2702.8,3.69977]
[1739514858734,0.19076706,2703.2,2703.1,0.05693688]
[1739514858893,1.06020577,2703.2,2702.8,3.69977]
[1739514859096,0.19076706,2703.2,2703.1,0.05693688]
[1739514859338,0.19076706,2703.2,2702.8,3.69977]
[1739514859839,0.19076706,2703.2,2702.9,0.05705589]
[1739514861598,3.89015706,2703.2,2702.6,4.46716]
[1739514861832,3.89015706,2703.2,2703.0,0.05699638]
[1739514862005,4.91358803,2703.2,2702.6,8.16722]
[1739514862211,4.91358803,2703.2,2703.1,0.05693688]
[1739514862411,4.91358803,2703.2,2702.6,8.16722]
[1739514862647,4.91358803,2703.2,2703.1,0.05693688]
[1739514862809,3.69957,2703.1,2702.6,0.7671]
[1739514863006,3.69968,2703.0,2702.4,3.70032]
[1739514863317,0.763,2702.9,2702.4,7.40064]
[1739514863517,0.763,2702.9,2702.4,3.70032]
[1739514863913,4.46274,2702.9,2702.4,3.70032]
[1739514864113,4.46274,2702.9,2702.4,3.0]
[1739514864318,0.763,2702.9,2702.4,3.70039]
[1739514864526,0.763,2702.9,2702.6,3.7001]
[1739514865200,0.763,2702.9,2702.4,3.70039]
[1739514865401,0.763,2702.9,2702.4,7.40071]
[1739514865600,4.46273,2702.9,2702.4,3.70032]
[1739514866300,0.763,2702.9,2702.4,3.70032]
[1739514866706,3.69987,2702.8,2702.3,6.70053]
[1739514868817,0.4949706,2702.8,2702.2,3.7006]
[1739514869015,0.4949706,2702.8,2702.1,3.70074]
[1739514869016,0.015,2702.6,2702.1,3.70074]
[1739514870619,0.015,2702.6,2702.3,3.70053]
[1739514871355,0.015,2702.6,2702.1,3.70074]
[1739514871713,0.015,2702.6,2702.2,0.05748978]
[1739514872114,0.8054,2702.5,2702.2,0.05748978]
[1739514872512,0.8054,2702.5,2702.2,3.70059]
[1739514872776,0.8054,2702.5,2702.3,0.05754522]
[1739514873130,0.8054,2702.5,2702.2,3.70059]
[1739514873327,0.8194,2702.8,2702.4,0.05748568]
[1739514873662,4.51927,2702.8,2702.5,0.05742615]
[1739514873819,0.451927,2702.7,2702.3,3.70053]
[1739514874024,0.466927,2702.7,2702.6,0.05736663]
[1739514874228,0.466927,2702.7,2702.3,3.70053]
[1739514874430,0.466927,2702.7,2702.6,0.05736663]
[1739514874641,0.466927,2702.7,2702.3,3.70053]
[1739514874843,0.466927,2702.7,2702.6,0.05736663]
[1739514875038,0.466927,2702.7,2702.3,3.70053]
[1739514875039,0.451927,2702.7,2702.4,3.70032]
[1739514875373,0.265,2702.8,2702.6,0.05736663]
[1739514875665,0.265,2702.8,2702.7,0.0573071]
[1739514875878,0.265,2702.8,2702.5,3.70018]
[1739514876034,0.265,2702.8,2702.7,0.0573071]
[1739514876236,0.265,2702.8,2702.5,3.70018]
[1739514876436,0.265,2702.8,2702.7,0.0573071]
[1739514876661,0.28,2702.9,2702.7,3.69998]
[1739514876859,0.265,2702.9,2702.7,0.0573071]
[1739514877447,0.8044,2703.0,2702.7,0.0573071]
[1739514878979,0.265,2703.1,2702.7,4.5860071]
[1739514879894,0.265,2703.1,2702.7,8.2859171]
[1739514880061,1.25736706,2703.2,2702.9,3.69969]
[1739514880247,0.45576706,2703.2,2702.9,3.69969]
[1739514880453,0.45576706,2703.2,2703.0,0.05712856]
[1739514881142,0.45576706,2703.2,2702.7,4.52858]
[1739514881342,0.45576706,2703.2,2703.1,0.05706906]
[1739514881538,0.95060577,2703.2,2702.7,4.52858]
[1739514881739,0.45576706,2703.2,2703.1,0.05706906]
[1739514881952,0.45576706,2703.2,2702.7,4.52858]
[1739514882466,0.45576706,2703.2,2702.8,3.75693562]
[1739514883446,0.45576706,2703.2,2702.8,0.05715562]
[1739514883665,0.45576706,2703.2,2702.7,0.8287]
[1739514883666,0.7765,2703.1,2702.5,4.50819]
[1739514883852,0.7765,2703.1,2702.9,0.05709611]
[1739514884051,0.86309871,2703.0,2702.6,3.70008]
[1739514884254,0.7765,2703.1,2703.0,0.0570366]
[1739514884453,0.7765,2703.1,2702.5,4.50816]
[1739514884454,0.7765,2703.1,2702.7,3.69998]
[1739514884654,0.7765,2703.1,2703.0,0.0570366]
[1739514884848,0.7765,2703.1,2702.7,3.69998]
[1739514885166,0.7765,2703.1,2703.0,0.0570366]
[1739514885369,1.26965871,2703.1,2702.7,3.69998]
[1739514885577,0.7765,2703.1,2703.0,0.0570366]
[1739514885770,0.7765,2703.1,2702.7,3.69998]
[1739514885951,0.7765,2703.1,2703.0,0.0570366]
[1739514886151,0.7765,2703.1,2702.7,3.69998]
[1739514886352,0.7765,2703.1,2703.0,0.0570366]
[1739514886548,0.45576706,2703.2,2702.9,4.45012]
[1739514886781,0.19076706,2703.2,2703.0,3.7564966]
[1739514888886,0.19076706,2703.2,2703.1,3.69945]
[1739514889066,0.19076706,2703.2,2703.1,4.57706176]
[1739514889692,0.19076706,2703.2,2703.1,0.87761176]
[1739514889866,0.19076706,2703.2,2703.1,0.0569771]
[1739514891353,0.19076706,2703.2,2703.1,3.7564271]
[1739514892290,0.19076706,2703.2,2703.1,4.5338271]
[1739514896777,0.19076706,2703.2,2703.1,4.2850271]
[1739514896978,0.19076706,2703.2,2703.1,4.3394233]
[1739514897291,0.19076706,2703.2,2703.1,5.14331163]
[1739514899208,0.19076706,2703.2,2703.1,4.89531163]
[1739514903891,0.19076706,2703.2,2703.1,7.89531163]
[1739514909513,0.19076706,2703.2,2703.1,6.3140233]
[1739514910050,0.19076706,2703.2,2703.1,3.0543962]
[1739514910251,0.19076706,2703.2,2703.1,0.0543962]
[1739514910754,0.19076706,2703.2,2702.8,3.69984]
[1739514910908,0.19076706,2703.2,2703.1,0.0535172]
[1739514911111,0.66219477,2703.2,2702.8,3.69984]
[1739514911347,4.36150477,2703.2,2703.1,0.0535172]
[1739514911551,4.36150477,2703.2,2702.6,3.7001]
[1739514911764,4.36150477,2703.2,2703.1,0.0535172]
[1739514911971,4.36150477,2703.2,2702.6,3.7001]
[1739514912261,4.36150477,2703.2,2703.1,0.0535172]
[1739514912452,4.36150477,2703.2,2702.6,3.7001]
[1739514912652,4.36150477,2703.2,2702.7,0.05375525]
[1739514912976,0.51858048,2703.1,2702.7,0.05375525]
[1739514913623,4.50059,2703.0,2702.7,0.05375525]
[1739514914020,4.50059,2703.0,2702.5,6.41433706]
[1739514914260,4.50059,2703.0,2702.8,0.05369573]
[1739514914461,4.50059,2703.0,2702.5,6.41433706]
[1739514914763,4.50059,2703.0,2702.9,0.05363622]
[1739514914967,5.43865752,2703.0,2702.5,6.41433706]
[1739514915120,5.43865752,2703.0,2702.9,0.05363622]
[1739514915326,5.43865752,2703.0,2702.5,2.71407706]
[1739514915327,3.69985,2702.9,2702.5,2.71407706]
[1739514915525,0.7916,2702.8,2702.5,2.71407706]
[1739514916125,4.49155,2702.8,2702.5,2.71407706]
[1739514916375,0.7916,2702.6,2702.5,2.71407706]
[1739514918360,4.49174,2702.6,2702.5,2.71407706]
[1739514920450,4.75674,2702.6,2702.5,2.71407706]
[1739514920749,10.07674,2702.6,2702.5,2.71407706]
[1739514920947,10.08424,2702.6,2702.5,2.71407706]
[1739514921171,11.5150795,2702.6,2702.5,2.71407706]
[1739514921369,11.5150795,2702.6,2701.7,3.70128]
[1739514921370,0.7797,2702.2,2701.7,3.70128]
[1739514921569,6.0997,2702.2,2701.5,4.45211]
[1739514921783,3.70084,2702.1,2701.5,4.45211]
[1739514921987,9.8005,2702.2,2701.5,4.45211]
[1739514922189,3.70101,2702.0,2701.5,4.45211]
[1739514922362,4.68095,2702.1,2701.5,4.45211]
[1739514922567,3.7011,2701.9,2701.4,6.70176]
[1739514922877,0.7732,2701.8,2701.4,6.70176]
[1739514923419,0.7732,2701.8,2701.4,3.0]
[1739514924258,0.7732,2701.8,2701.5,3.70154]
[1739514924480,0.7881,2702.0,2701.5,3.70154]
[1739514924681,0.98005,2702.1,2701.7,3.70128]
[1739514926771,6.30005,2702.1,2701.7,3.70128]
[1739514927092,0.709375,2702.0,2701.7,3.70128]
[1739514929798,0.709375,2702.0,2701.6,3.70148]
[1739514930871,0.709375,2702.0,2701.7,7.40265]
[1739514931071,6.30005,2702.1,2701.7,3.70128]
[1739514931499,6.30005,2702.1,2701.8,0.054525]
[1739514931673,6.30005,2702.1,2701.7,3.70128]
[1739514932063,6.30005,2702.1,2701.8,0.054525]
[1739514932265,1.105943,2702.0,2701.8,0.054525]
[1739514932460,1.105943,2702.0,2701.7,3.70128]
[1739514932788,1.105943,2702.0,2701.8,0.11627788]
[1739514933184,1.105943,2702.0,2701.7,3.70128]
[1739514933383,0.7843,2701.9,2701.8,0.11627788]
[1739514933566,1.8754103,2701.9,2701.5,3.70158]
[1739514933764,1.8754103,2701.9,2701.6,0.11640158]
[1739514934606,5.5765103,2701.9,2701.6,0.11640158]
[1739514934806,0.7843,2701.7,2701.3,3.70181]
[1739514935912,4.48572,2701.7,2701.2,3.70198]
[1739514936367,0.7843,2701.7,2701.2,3.70198]
[1739514938508,6.1043,2701.7,2701.2,3.70198]
[1739514938712,0.980555,2701.6,2701.2,3.70198]
[1739514941520,0.980555,2701.6,2701.3,3.7019]
[1739514941837,0.980555,2701.6,2701.4,3.70174]
[1739514942140,0.980555,2701.6,2701.5,3.70164]
[1739514942312,6.1043,2701.7,2701.3,3.70187]
[1739514942512,6.1043,2701.7,2701.4,3.70177]
[1739514943045,6.1043,2701.7,2701.5,3.70163]
[1739514943900,6.1043,2701.7,2701.3,4.48952]
[1739514944104,6.1043,2701.7,2701.3,3.70182]
[1739514944305,6.71473,2701.7,2701.4,3.70178]
[1739514945524,6.71473,2701.7,2701.3,3.70182]
[1739514946028,6.71473,2701.7,2701.4,3.70168]
[1739514946642,6.71473,2701.7,2701.5,0.11662448]
[1739514947847,6.71473,2701.7,2701.5,3.70163]
[1739514948007,6.71473,2701.7,2701.6,0.11656263]
[1739514949449,5.32,2701.7,2701.6,4.59967263]
[1739514950452,0.265,2701.9,2701.7,3.70131]
[1739514950751,0.265,2701.9,2701.8,0.11651944]
[1739514950949,0.265,2701.9,2701.7,3.70131]
[1739514951152,0.265,2701.9,2701.8,0.11651944]
[1739514951355,0.265,2701.9,2701.7,3.70131]
[1739514951512,0.265,2701.9,2701.8,0.11651944]
[1739514951710,0.265,2701.9,2701.8,3.70123]
[1739514951933,0.265,2701.9,2701.8,3.81774944]
[1739514952143,0.265,2701.9,2701.8,0.11651944]
[1739514952370,0.265,2701.9,2701.6,3.70151]
[1739514952526,0.90059,2701.9,2701.7,0.11658129]
[1739514952713,0.7658,2701.8,2701.4,7.40337]
[1739514952914,0.7658,2701.8,2701.5,0.116705]
[1739514953535,0.7658,2701.8,2701.5,3.818255]
[1739514953754,0.7658,2701.8,2701.5,0.116705]
[1739514953928,0.265,2701.9,2701.7,3.70135]
[1739514954129,0.265,2701.9,2701.8,0.11628938]
[1739514954347,0.265,2701.9,2701.8,3.70123]
[1739514954543,0.265,2701.9,2701.8,0.11628938]
[1739514954723,0.265,2701.9,2701.7,3.70135]
[1739514955069,0.265,2701.9,2701.8,0.11628938]
[1739514955464,0.265,2701.9,2701.7,3.70135]
[1739514955677,0.265,2701.9,2701.8,0.11628938]
[1739514955964,0.265,2701.9,2701.6,0.8185]
[1739514956170,0.7942,2701.8,2701.7,0.11635123]
[1739514956380,0.7942,2701.8,2701.5,3.70156]
[1739514956554,0.7942,2701.8,2701.6,0.11641309]
[1739514958169,0.7942,2701.8,2701.7,3.70137]
[1739514958371,0.7942,2701.8,2701.5,3.70156]
[1739514958372,0.2488,2701.7,2701.5,7.40309]
[1739514958982,0.2488,2701.7,2701.5,3.70153]
[1739514959267,0.2488,2701.7,2701.6,3.70151]
[1739514959447,0.2488,2701.7,2701.5,3.70153]
[1739514959630,0.2488,2701.7,2701.5,7.40305]
[1739514959970,0.2488,2701.7,2701.5,3.70152]
[1739514960168,0.2488,2701.7,2701.3,3.70179]
[1739514960376,0.7508,2701.5,2701.1,3.70211]
[1739514960668,6.0708,2701.5,2701.1,3.70211]
[1739514960875,6.0708,2701.5,2700.9,3.70237]
[1739514961077,6.0708,2701.5,2701.0,3.70224]
[1739514961242,0.7595,2701.3,2700.7,3.70264]
[1739514961572,0.7595,2701.1,2700.8,0.11707488]
[1739514961938,0.7595,2701.1,2700.8,3.81959488]
[1739514962126,0.7595,2701.1,2700.8,0.11707488]
[1739514962346,1.73765,2701.1,2700.8,0.11707488]
[1739514962778,1.73765,2701.1,2700.8,3.81959488]
[1739514963231,0.7595,2701.1,2700.9,3.70244]
[1739514963432,6.3678,2701.3,2700.9,3.70237]
[1739514963666,6.3678,2701.3,2701.0,0.11696261]
[1739514964146,6.3678,2701.3,2700.8,3.70256]
[1739514964363,6.3678,2701.3,2701.1,0.11751049]
[1739514964689,0.8145,2701.1,2700.5,3.70294]
[1739514964847,0.8145,2701.1,2700.7,3.70265]
[1739514965048,0.8145,2701.1,2700.9,3.70244]
[1739514965884,0.8145,2701.1,2700.7,3.70265]
[1739514966074,1.555296,2701.1,2700.7,3.70265]
[1739514966283,1.555296,2701.1,2700.7,7.4053]
[1739514967019,1.555296,2701.1,2700.7,3.70265]
[1739514967183,1.555296,2701.1,2700.7,3.70264]
[1739514967671,1.555296,2701.1,2700.6,3.70284]
[1739514968074,5.257496,2701.1,2700.5,3.70297]
[1739514968413,0.53794998,2701.0,2700.5,3.70297]
[1739514968618,0.787,2700.9,2700.5,3.70297]
[1739514969066,0.015,2700.8,2700.3,4.49032]
[1739514969563,0.015,2700.8,2700.5,3.70299]
[1739514970105,0.787,2700.9,2700.7,3.70269]
[1739514974207,6.107,2700.9,2700.7,3.70269]
[1739514975094,6.107,2700.9,2700.5,3.70295]
[1739514975297,6.7925296,2700.9,2700.5,3.70295]
[1739514976608,6.7925296,2700.9,2700.6,0.11781995]
[1739514978186,6.7925296,2700.9,2700.5,3.70299]
[1739514978399,6.7925296,2700.9,2700.6,0.11781995]
[1739514980823,6.7925296,2700.9,2700.4,3.70312]
[1739514981115,1.06448596,2700.8,2700.7,0.11790194]